{"text_format":"1","workbook":"xlsx","n_sheets":5,"sheets":["Order form","Price List","Languages","LangBackup","Setup"],"not_rendered":{"charts":0,"images":2,"macros":1,"external_links":3,"defined_names":13,"comments":0,"pivot_tables":0},"unopened":[],"bounds":{"document_bytes":16777216,"sheet_cells":100000,"rows_first":2000,"rows_last":500,"rows_between":2000,"halvings":0,"cell_chars":16384,"cell_head_chars":4096},"cells_cut":0,"cells_raw":0,"read":"whole","date_system":"1900"}

{"sheet":"Order form","index":0,"n_rows":73,"n_cols":42,"rows_kept":73,"cut":false,"hidden":false,"merged":[[72,7,72,10],[65,1,70,35],[58,16,58,35],[59,16,59,35],[72,25,72,35],[72,11,72,12],[72,13,72,15],[57,16,57,35],[5,5,5,13],[5,18,5,25],[5,28,5,35],[6,5,6,13],[6,18,6,25],[6,28,6,35],[12,5,12,13],[12,28,12,35],[44,16,44,35],[13,5,13,13],[12,18,12,25],[20,16,20,35],[50,16,50,35],[54,16,54,35],[18,7,18,35],[11,28,11,35],[11,18,11,25],[17,7,17,35],[47,16,47,35],[32,16,32,35],[21,16,21,35],[28,16,28,35],[38,16,38,35],[29,16,29,35],[39,16,39,35],[33,16,33,35],[43,16,43,35],[31,16,31,35],[24,16,24,35],[25,16,25,35],[26,16,26,35],[8,5,8,13],[9,5,9,13],[10,5,10,13],[7,28,7,35],[8,28,8,35],[9,28,9,35],[10,28,10,35],[23,16,23,35],[22,16,22,25],[22,30,22,35],[22,26,22,29],[15,1,15,35],[17,1,17,6],[18,1,18,6],[1,12,1,27],[2,12,2,27],[10,18,10,25],[14,28,14,35],[14,18,14,25],[2,30,2,35],[7,18,7,25],[8,18,8,25],[9,18,9,25],[13,18,13,25],[13,28,13,35],[14,5,14,13],[1,6,1,11],[1,30,1,35],[11,5,11,13],[7,5,7,13],[56,16,56,35],[52,27,52,35],[35,16,35,35],[41,16,41,25],[41,26,41,29],[41,30,41,35],[36,16,36,35],[37,16,37,35],[27,26,27,29],[51,16,51,35],[52,16,52,25],[55,16,55,35],[30,16,30,35],[34,16,34,35],[27,16,27,25],[27,30,27,35]]}
["DELTA20190624EN"]
[100,"Idioma",null,null,null,null,"Español",null,null,null,null,null,"SIGMA",null,null,null,null,null,null,null,null,null,null,null,null,null,null,null,"Fecha",null,{"$f":"TODAY()","v":"2022-08-31"}]
[110,null,null,null,null,null,null,null,null,null,null,null,"FORMULARIO DE PEDIDO",null,null,null,null,null,null,null,null,null,null,null,null,null,null,null,"Versión",null,"Lehner 01"]
[]
[null,null,null,null,null,null,null,null,null,null,null,null,null,null,"Distribuidor: (siempre llene)",null,null,null,null,null,null,null,null,null,null,null,"Dirección de entrega: (siempre completar)"]
[120,"Company:",null,null,null,"Lehner Lifttechnik GmbH",null,null,null,null,null,null,null,null,"Empresa",null,null,null,null,null,null,null,null,null,null,null,"Empresa"]
[130,"Name:",null,null,null,"Max Lehner",null,null,null,null,null,null,null,null,"Name:",null,null,null,null,null,null,null,null,null,null,null,"Name:"]
[140,"Adress:",null,null,null,"Salling 8",null,null,null,null,null,null,null,null,"Dirección",null,null,null,null,null,null,null,null,null,null,null,"Dirección"]
[150,"Postcode:",null,null,null,"A - 4724",null,null,null,null,null,null,null,null,"Código postal",null,null,null,null,null,null,null,null,null,null,null,"Código postal"]
[160,"City:",null,null,null,"Neukirchen am Walde",null,null,null,null,null,null,null,null,"Ciudad",null,null,null,null,null,null,null,null,null,null,null,"Ciudad"]
[170,"Country:",null,null,null,"Austria",null,null,null,null,null,null,null,null,"País",null,null,null,null,null,null,null,null,null,null,null,"País"]
[180,"Phone no:",null,null,null,"+43 7278 3514-0",null,null,null,null,null,null,null,null,"Teléfono",null,null,null,null,null,null,null,null,null,null,null,"Teléfono"]
[190,"E-mail:",null,null,null,"office@lehnerlifttechnik.at",null,null,null,null,null,null,null,null,"Email"]
[200,"ID:",null,null,null,"ATU22360601",null,null,null,null,null,null,null,null,"ID:"]
[210,"VAT ID:",null,null,null,"ATU22360601",null,null,null,null,null,null,null,null,"VAT ID:"]
[220,"Dirección de recogida de los equipos: Spedition Englmayer, Wiesenstrasse 71, 4600 Wels, Austria"]
[]
[null,"Producción no.",null,null,null,null,null,"Nombre de referencia del pedido (o número)"]
[230]
[]
[1000,"Tipo de plataforma",null,null,null,null,null,null,null,null,null,null,null,null,null,null,"Plataforma abierta"]
[1010,"Altura de elevacion exacta (opcional)"]
[null,"Foso (si existe) en mm",null,null,null,null,null,null,null,null,null,null,null,null,null,null,"Sí",null,null,null,null,null,null,null,null,null,{"$f":"IF(ISNUMBER(FIND(\"n\",Q23)),\"\",\"mm:\")","v":"mm:"},null,null,null,null,null,null,null,null,null,null,null,{"$f":"IF(Q23=\"Sí\",\"La altura de elevación se reduce por la profundidad del foso\", \"\")","v":"La altura de elevación se reduce por la profundidad del foso"}]
[null,"Ubicación de la instalación",null,null,null,null,null,null,null,null,null,null,null,null,null,null,"Interior"]
[null,"Rampa de acceso",null,null,null,null,null,null,null,null,null,null,null,null,null,null,"Automático",null,null,null,null,null,null,null,null,null,null,null,null,null,null,null,null,null,null,null,null,null,{"$f":"IF(Q25=\"Ja\",\"The lifting travel is reduced by the pit depth\", \"\")","v":""}]
[null,"Salida lateral en el aterrizaje superior",null,null,null,null,null,null,null,null,null,null,{"$f":"IF(Q25=\"No (standard)\",\"See illustration on the right\", \"\")","v":""},null,null,null,"No (estándar)",null,null,null,null,null,null,null,null,null,null,null,null,null,null,null,null,null,null,null,null,null,{"$f":"IF(Q26<>\"No (estándar)\",\"Vea la ilustración de la derecha\", \"\")","v":""}]
[null,"Entrada lateral en el aterrizaje inferior ",null,null,null,null,null,null,null,null,null,null,null,null,null,null,"No (estándar)",null,null,null,null,null,null,null,null,null,null,null,null,null,null,null,null,null,null,null,null,null,{"$f":"IF(Q27<>\"No (estándar)\",\"Vea la ilustración de la derecha\", \"\")","v":""},"IZQUIERDA - Entrada lateral en el aterrizaje inferior ","DERECHA - Entrada lateral en el aterrizaje inferior "]
[1020,"El color de la superficie",null,null,null,null,null,null,null,null,null,null,null,null,null,null,"RAL 9022 (estándar)",null,null,null,null,null,null,null,null,null,{"$f":"IF(ISNUMBER(FIND(\"Special\",Q28)),\"RAL:\",\"\")","v":""}]
[]
[null,"Specifications",null,null,null,null,null,null,null,null,null,null,null,null,null,null,null,null,null,null,null,null,null,null,null,null,null,null,null,null,null,null,null,null,null,null,null,null,null,"Dirección de apertura de la puerta DIN"]
[1040,"Columna para el control de la plataforma",null,null,null,null,null,null,null,null,null,null,null,null,null,null,"No"]
[1050,"Bar de contacto en los 4 lados",null,null,null,null,null,null,null,null,null,null,null,null,null,null,"No"]
[null,"Apertura de la puerta en el rellano inferior",null,null,null,null,null,null,null,null,null,null,null,null,null,null,"DIN Derecha"]
[null,"Apertura de la puerta en el rellano superior",null,null,null,null,null,null,null,null,null,null,null,null,null,null,"DIN Derecha"]
[1060,"Controles externos cableados",null,null,null,null,null,null,null,null,null,null,null,null,null,null,1]
[1070,"Controles externos radio",null,null,null,null,null,null,null,null,null,null,null,null,null,null,2,null,null,null,null,null,null,null,null,null,null,null,null,null,null,null,null,null,null,null,null,null,null,"DIN Izquierda",null,"DIN Right"]
[null,"Pilar para fijación de control externo",null,null,null,null,null,null,null,null,null,null,null,null,null,null,"No"]
[null,"Pilar de control externo con botones integrados",null,null,null,null,null,null,null,null,null,null,null,null,null,null,"No"]
[1080,"Cortina de seguridad en lugar de fondo de seguridad",null,null,null,null,null,null,null,null,null,null,null,null,null,null,"No",null,null,null,null,null,null,null,null,null,null,null,null,null,null,null,null,null,null,null,null,null,{"$f":"IF(Q36=\"Sí\",\"Solo disponible para plataformas elevadoras abiertas de hasta 1500 de altura de elevación\", \"\")","v":""}]
[1090,"Rampa de acceso de 750mm",null,null,null,null,null,null,null,null,null,null,null,null,null,null,"Sí",null,null,null,null,null,null,null,null,null,null,"RAL:",null,"RAL:",null,null,null,null,null,null,null,null,{"$f":"IF(Q36=\"Sí\",\"No es posible para la entrada lateral en el nivel inferior\", \"\")","v":""},"DIN Right",null,"DIN Left"]
[1100]
[1110,"Longitud especial para la rampa de acceso",null,null,null,null,null,null,null,null,null,null,null,null,null,null,"No",null,null,null,null,null,null,null,null,null,{"$f":"IF(ISNUMBER(FIND(\"N\",Q42)),\"\",\"mm:\")","v":""}]
[1120]
[1130,"Módulo GSM para llamada de emergencia",null,null,null,null,null,null,null,null,null,null,null,null,null,null,"No"]
[1140,"Cubierta para la parte trasera de la torre",null,null,null,null,null,null,null,null,null,null,null,null,null,null,"No",null,null,null,null,null,null,null,null,null,null,null,null,null,null,null,null,null,null,null,null,null,null,"DIN Derecha",null,"DIN Left"]
[1150,null,null,null,null,null,null,null,null,null,null,null,null,null,null,null,null,null,null,null,null,null,null,null,null,null,null,null,null,null,null,null,null,null,null,null,null,null,null,"DIN Left",null,"DIN Right"]
[1160,null,null,null,null,null,null,null,null,null,null,null,null,null,null,null,null,null,null,null,null,null,null,null,null,null,null,null,null,null,null,null,null,null,null,null,null,null,null,"DIN Rechts"]
[1170,"Abridores automáticos de puertas",null,null,null,null,null,null,null,null,null,null,null,null,null,null,"No"]
[]
[null,"Especificaciones adicionales"]
[1210,"Caja de transporte",null,null,null,null,null,null,null,null,null,null,null,null,null,null,"Q1 - Caja de madera"]
[null,"Change in the order after approval",null,null,null,null,null,null,null,null,null,null,null,null,null,null,"No"]
[1220,"Garantia",null,null,null,null,null,null,null,null,null,null,null,null,null,null,"other"]
[1230]
[1240,null,null,null,null,null,null,null,null,null,null,null,null,null,null,null,"No"]
[]
[null,null,null,null,null,null,null,null,null,null,null,null,null,null,null,null,"No"]
[1260,null,null,null,null,null,null,null,null,null,null,null,null,null,null,null,"No"]
[1460,null,null,null,null,null,null,null,null,null,null,null,null,null,null,null,"No"]
[null,"Posición de suministro eléctrico",null,null,null,null,null,null,null,null,null,null,null,null,null,null,"Atrás - lado derecho"]
[]
[]
[]
[null,"Información Adicional"]
[]
[1480]
[]
[]
[]
[]
[]
[]
[240,"Fecha de entrega",null,null,null,null,null,"Semana",null,null,null,null,null,2022,null,null,null,null,null,null,null,"Preparado por"]

{"sheet":"Price List","index":1,"n_rows":60,"n_cols":9,"rows_kept":60,"cut":false,"hidden":true,"merged":[[38,1,42,1],[44,1,47,1],[48,1,55,1],[55,2,55,7],[59,2,59,5],[22,1,32,1],[33,1,37,1],[3,10,3,11],[1,2,1,6],[6,3,6,5],[7,1,10,1],[12,1,21,1]]}
[null,"Price list","SP-DELTA",null,null,null,{"$f":"'Order form'!AE3","v":"Lehner 01"}]
[null,"Order reference name (or number)",{"$f":"'Order form'!H19","v":0}]
[null,"Customer (client):","Lehner Lifttechnik GmbH"]
[null,null,"Salling 8"]
[null,null,"A - 4724"]
[null,null,"Neukirchen am Walde"]
[null,null,"Item",null,null,null,"unit","EUR/unit","Price EUR"]
[null,"Platform price","Basic price for lift with 3m steel rail cut to length",{"$f":"IF(OR(AND('Order form'!Q31=\"Platform + rail cut to length (standard)\",'Order form'!#REF!<>\"aluminium (indoor or outdoor)\")),1,)","v":{"$error":"#REF!"}},null,null,"pc",{"$f":"'[3]Price list'!$C8","v":0},{"$f":"D8*H8","v":{"$error":"#REF!"}}]
[null,null,"Basic price for lift with 3m aluminium rail cut to length",{"$f":"IF(OR(AND('Order form'!Q31=\"Platform + rail cut to length (standard)\",'Order form'!#REF!=\"aluminium (indoor or outdoor)\")),1,)","v":{"$error":"#REF!"}},null,null,"pc",{"$f":"'[3]Price list'!$C9","v":0},{"$f":"D9*H9","v":{"$error":"#REF!"}}]
[null,null,"Surcharge for stainless platform",{"$f":"IF(OR('Order form'!#REF!=\"stainless + Special RAL\"),1,)","v":{"$error":"#REF!"}},null,null,"pc",{"$f":"'[3]Price list'!$C10","v":0},{"$f":"D10*H10","v":{"$error":"#REF!"}}]
[null,null,"Surcharge for zinc sprayed platform",{"$f":"IF(OR('Order form'!#REF!=\"zinc + RAL 7035 (outdoor standard)\",'Order form'!#REF!=\"zinc + Special RAL\"),1,)","v":{"$error":"#REF!"}},null,null,"pc",{"$f":"'[3]Price list'!$C11","v":0},{"$error":"#REF!"}]
[null,"Location","Indoor / Outdoor",null,null,null,null,{"$f":"'[3]Price list'!$C12","v":0}]
[null,"Rail","Steel rail cut to length",{"$f":"IF(AND('Order form'!Q28>3,AND(OR('Order form'!#REF!=\"RAL 9007 (standard indoor)\",'Order form'!#REF!=\"Special RAL\",'Order form'!#REF!=\"stainless 304\",'Order form'!#REF!=\"stainless 316\"))),'Order form'!Q28-3,0)","v":{"$error":"#REF!"}},null,null,"m",{"$f":"'[3]Price list'!$C13","v":0},{"$f":"H13*D13","v":{"$error":"#REF!"}}]
[null,null,"Aluminium stock rail (in 3m pieces)",{"$f":"IF(AND('Order form'!Q28>3,AND('Order form'!#REF!=\"aluminium (indoor or outdoor)\")),'Order form'!Q28-3,0)","v":{"$error":"#REF!"}},null,null,"m",{"$f":"'[3]Price list'!$C14","v":0},{"$f":"H14*D14","v":{"$error":"#REF!"}}]
[null,null,"Stainless rail 304 cut to length",{"$f":"IF(AND('Order form'!Q28>0,'Order form'!#REF!=\"stainless 304\"),'Order form'!Q28,0)","v":{"$error":"#REF!"}},null,null,"m",{"$f":"'[3]Price list'!$C15","v":0},{"$error":"#REF!"}]
[null,null,"Stainless rail 316 cut to length",{"$f":"IF(AND('Order form'!Q28,'Order form'!#REF!=\"stainless 316\"),'Order form'!Q28,0)","v":{"$error":"#REF!"}},null,null,"m",{"$f":"'[3]Price list'!$C16","v":0},{"$error":"#REF!"}]
[null,null,"Color treated pillars (each 0,6 m)",{"$f":"CEILING(E17,1)","v":{"$error":"#REF!"}},{"$f":"IF(OR('Order form'!#REF!=\"on the pillars only\",'Order form'!#REF!=\"on the wall + pillars\"),('Order form'!Q28/0.6+1),0)","v":{"$error":"#REF!"}},null,"pc",{"$f":"'[3]Price list'!$C17","v":0},{"$f":"H17*D17","v":{"$error":"#REF!"}}]
[null,null,"Surcharge - Fire zinc - pillars (each 0,6 m)",{"$f":"IF(OR('Order form'!#REF!=\"zinc + RAL 7035 (outdoor standard)\",'Order form'!#REF!=\"zinc + special RAL\"),D17,0)","v":{"$error":"#REF!"}},null,null,"pc",{"$f":"'[3]Price list'!$C18","v":0},{"$f":"H18*D18","v":{"$error":"#REF!"}}]
[null,null,"Surcharge - Stainless steel pillars (each 0,6 m)",{"$f":"IF(OR('Order form'!#REF!=\"stainless 304\",'Order form'!#REF!=\"stainless 316\"),D17,0)","v":{"$error":"#REF!"}},null,null,"pc",{"$f":"'[3]Price list'!$C19","v":0},{"$f":"H19*D19","v":{"$error":"#REF!"}}]
[null,null,"Extra pillars for controls",{"$f":"IF('Order form'!#REF!=\"Pillar mounted\",'Order form'!Q48,0)","v":{"$error":"#REF!"}},null,null,"pc",{"$f":"'[3]Price list'!$C20","v":0},{"$error":"#REF!"}]
[null,null,"Surcharge - Stainless steel extra pillars for controls",{"$f":"IF(OR('Order form'!#REF!=\"stainless 304\",'Order form'!#REF!=\"stainless 316\"),D20,0)","v":{"$error":"#REF!"}},null,null,"pc",{"$f":"'[3]Price list'!$C21","v":0},{"$error":"#REF!"}]
[null,null,"Adjustable slots on pillars",{"$f":"IF('Order form'!#REF!=\"yes\",D17,0)","v":{"$error":"#REF!"}},null,null,"pc",{"$f":"'[3]Price list'!$C22","v":0},{"$f":"H22*D22","v":{"$error":"#REF!"}}]
[null,"Platform","Automatic folding",{"$f":"IF('Order form'!Q39=\"automatic\",1,0)","v":0},null,null,"pc",{"$f":"'[3]Price list'!$C23","v":0},{"$f":"H23*D23","v":0}]
[null,null,"Non-standard platform dimensions",{"$f":"IF('Order form'!Q36=\"special\",1,0)","v":0},null,null,"pc",{"$f":"'[3]Price list'!$C24","v":0},0]
[null,null,"Platform with front loading ramp",{"$f":"IF(OR('Order form'!Q40=\"Upper and lower ramp + front ramp (90° side access)\",'Order form'!Q40=\"Upper and front (without lower)\"),1,0)","v":0},null,null,"pc",{"$f":"'[3]Price list'!$C25","v":0},{"$f":"H25*D25","v":0}]
[null,null,"Front folding ramp 85o",{"$f":"IF('Order form'!Q41=\"yes\",1,0)","v":0},null,null,"pc",{"$f":"'[3]Price list'!$C26","v":0},{"$f":"H26*D26","v":0}]
[null,null,"Platform without lower loading ramp",{"$f":"IF('Order form'!Q40=\"Upper and front ramp (without lower)\",1,0)","v":0},null,null,"pc",{"$f":"'[3]Price list'!$C27","v":0},{"$f":"H27*D27","v":0}]
[null,null,"Folding sideboard",{"$f":"IF('Order form'!Q44=\"yes\",1,0)","v":0},null,null,"pc",{"$f":"'[3]Price list'!$C28","v":0},0]
[null,null,"The length of loading ramps 300mm",{"$f":"IF('Order form'!Q42=\"300mm (special)\",1,0)","v":0},null,null,"pc",{"$f":"'[3]Price list'!$C29","v":0},0]
[null,null,"Plastic cover",{"$f":"IF('Order form'!Q58=\"yes\",1,0)","v":0},null,null,"pc",{"$f":"'[3]Price list'!$C30","v":0},{"$f":"H30*D30","v":0}]
[null,null,"Padlock against unfolding of the platform by unauthorized user ",{"$f":"IF('Order form'!#REF!=\"yes\",1,0)","v":{"$error":"#REF!"}},null,null,"pc",{"$f":"'[3]Price list'!$C31","v":0},{"$f":"H31*D31","v":{"$error":"#REF!"}}]
[null,null,"Folding upholstery seat",{"$f":"IF('Order form'!Q32=\"With upholstery folding seat\",1,0)","v":0},null,null,"pc",{"$f":"'[3]Price list'!$C32","v":0},{"$f":"H32*D32","v":0}]
[null,null,"Folding steel seat",{"$f":"IF('Order form'!Q32=\"With steel folding seat\",1,0)","v":0},null,null,"pc",{"$f":"'[3]Price list'!$C33","v":0},{"$f":"H33*D33","v":0}]
[null,"Rail fillings","Glass fillings between pillars",{"$f":"IF('Order form'!#REF!=\"Connex glass\",'Order form'!#REF!,0)","v":{"$error":"#REF!"}},null,null,"pc",{"$f":"'[3]Price list'!$C34","v":0},{"$f":"H34*D34","v":{"$error":"#REF!"}}]
[null,null,"Perforated metal plates between pillars",{"$f":"IF('Order form'!#REF!=\"Perforated metal plates\",'Order form'!#REF!,0)","v":{"$error":"#REF!"}},null,null,"pc",{"$f":"'[3]Price list'!$C35","v":0},{"$error":"#REF!"}]
[null,null,"Wooden fillings",{"$f":"IF('Order form'!#REF!=\"Wooden\",'Order form'!#REF!,0)","v":{"$error":"#REF!"}},null,null,"pc",{"$f":"'[3]Price list'!$C36","v":0},{"$f":"H36*D36","v":{"$error":"#REF!"}}]
[null,null,"Steel rods between pillars",{"$f":"IF('Order form'!#REF!=\"Steel rods\",'Order form'!#REF!,0)","v":{"$error":"#REF!"}},null,null,"pc",{"$f":"'[3]Price list'!$C37","v":0},{"$error":"#REF!"}]
[null,null,"Stainless steel fillings",{"$f":"IF('Order form'!#REF!=\"Stainless steel rods\",'Order form'!#REF!,0)","v":{"$error":"#REF!"}},null,null,"pc",{"$f":"'[3]Price list'!$C38","v":0},{"$error":"#REF!"}]
[null,"Controls","Radio controls with large push buttons (in compliance with EN 81-40)",{"$f":"IF('Order form'!Q33=\"Big push buttons (special)\",'Order form'!Q48,0)","v":0},null,null,"pc",{"$f":"'[3]Price list'!$C39","v":0},{"$f":"H39*D39","v":0}]
[null,null,"Extra controls (2 pcs included in basic price)",{"$f":"'Order form'!Q48-2","v":{"$error":"#VALUE!"}},null,null,"pc",{"$f":"'[3]Price list'!$C40","v":0},{"$error":"#VALUE!"}]
[null,null,"Removing key in ON position",{"$f":"IF('Order form'!#REF!=\"yes\",1,0)","v":{"$error":"#REF!"}},null,null,"pc",{"$f":"'[3]Price list'!$C41","v":0},{"$error":"#REF!"}]
[null,null,"EURO key",{"$f":"IF('Order form'!Q34=\"Euro key\",'Order form'!Q48,0)","v":0},null,null,"pc",{"$f":"'[3]Price list'!$C42","v":0},{"$f":"H42*D42","v":0}]
[null,null,"Dual controls",{"$f":"IF(OR('Order form'!Q45=\"Dual controls with joystick\",'Order form'!Q45=\"Dual controls with push buttons\"),1,0)","v":0},null,null,"pc",{"$f":"'[3]Price list'!$C43","v":0},{"$f":"H43*D43","v":0}]
[null,"Surface treatment","Non-standard RAL color treatment ",{"$f":"IF(OR('Order form'!#REF!=\"RAL:\",'Order form'!#REF!=\"RAL:\",'Order form'!#REF!=\"RAL:\",'Order form'!#REF!=\"RAL:\"),1,0)","v":{"$error":"#REF!"}},null,null,"pc",{"$f":"'[3]Price list'!$C44","v":0},{"$f":"H44*D44","v":{"$error":"#REF!"}}]
[null,"Safety features in compliance with EN 81-40","Safety bottom",{"$f":"IF('Order form'!Q51=\"yes\",1,0)","v":0},null,null,"pc",{"$f":"'[3]Price list'!$C45","v":0},0]
[null,null,"Lateral safety pads",{"$f":"IF('Order form'!Q54=\"yes\",1,0)","v":0},null,null,"pc",{"$f":"'[3]Price list'!$C46","v":0},0]
[null,null,"Visual signals (bespoke solution) ",{"$f":"IF('Order form'!Q55=\"yes\",1,0)","v":0},null,null,"pc",{"$f":"'[3]Price list'!$C47","v":0},{"$f":"D47*H47","v":0}]
[null,null,"Overload signals",{"$f":"IF('Order form'!Q54=\"yes\",1,0)","v":0},null,null,"pc",{"$f":"'[3]Price list'!$C48","v":0},{"$f":"H48*D48","v":0}]
[null,"Additional costs","Warranty",24,null,null,"1 month",{"$f":"'[3]Price list'!$C49","v":0},{"$f":"H49*D49","v":0}]
[null,null,null,null,null,null,null,{"$f":"'[3]Price list'!$C50","v":0}]
[null,null,null,null,null,null,null,{"$f":"'[3]Price list'!$C51","v":0}]
[null,null,null,24,null,null,null,{"$f":"'[3]Price list'!$C52","v":0}]
[null,null,null,null,null,null,null,{"$f":"'[3]Price list'!$C53","v":0}]
[null,null,"Transport box",{"$f":"IF('Order form'!#REF!=\"none\",0,1)","v":{"$error":"#REF!"}},null,null,"pc",{"$f":"'[3]Price list'!$C54","v":0},{"$f":"H54*D54","v":{"$error":"#REF!"}}]
[null,null,null,null,null,null,null,{"$f":"'[3]Price list'!$C55","v":0}]
[]
[250,"Total price VAT excl.:",null,null,null,null,null,null,{"$f":"SUM(I8:I56)","v":{"$error":"#REF!"}}]
[260,"Discount:",null,null,null,null,null,0,{"$f":"H58*I57","v":{"$error":"#REF!"}}]
[270,"Final price, VAT excl.:",null,null,null,null,null,null,{"$f":"I57-I58","v":{"$error":"#REF!"}}]
[280,"Prepared by:"]

{"sheet":"Languages","index":2,"n_rows":171,"n_cols":10,"rows_kept":171,"cut":false,"hidden":true,"merged":[]}
["Cell","Type","English","Deutsch","Français","Español"]
[{"$f":"CELL(\"address\",'Order form'!M2)","v":"'[SIGMA order form_2022_FR.xlsm]Order form'!$M$2"},"Label","SIGMA","SIGMA","SIGMA","SIGMA"]
[{"$f":"CELL(\"address\",'Order form'!M3)","v":"'[SIGMA order form_2022_FR.xlsm]Order form'!$M$3"},"Label","ORDER FORM","BESTELLFORMULAR","BON DE COMMANDE","FORMULARIO DE PEDIDO"]
[{"$f":"CELL(\"address\",'Order form'!AC2)","v":"'[SIGMA order form_2022_FR.xlsm]Order form'!$AC$2"},"Label","Date","Datum","Date","Fecha"]
[{"$f":"CELL(\"address\",'Order form'!B2)","v":"'[SIGMA order form_2022_FR.xlsm]Order form'!$B$2"},"Label","Language","Sprache","La langue","Idioma"]
[{"$f":"CELL(\"address\",'Order form'!AC3)","v":"'[SIGMA order form_2022_FR.xlsm]Order form'!$AC$3"},"Label","Version","Version","Version","Versión"]
[{"$f":"CELL(\"address\",'Order form'!O5)","v":"'[SIGMA order form_2022_FR.xlsm]Order form'!$O$5"},"Label","Distributor: (always fill out)","Händler: (immer ausfüllen)","Distributeur:","Distribuidor: (siempre llene)"]
[{"$f":"CELL(\"address\",'Order form'!AA5)","v":"'[SIGMA order form_2022_FR.xlsm]Order form'!$AA$5"},"Label","Delivery address: (always fill out)","Lieferadresse: (immer ausfüllen)","Adresse de livraison:","Dirección de entrega: (siempre completar)"]
[{"$f":"CELL(\"address\",'Order form'!O6)","v":"'[SIGMA order form_2022_FR.xlsm]Order form'!$O$6"},"Label","Company","Firma","Société","Empresa"]
[{"$f":"CELL(\"address\",'Order form'!AA6)","v":"'[SIGMA order form_2022_FR.xlsm]Order form'!$AA$6"},"Label","Company","Firma","Société","Empresa"]
[{"$f":"CELL(\"address\",'Order form'!O8)","v":"'[SIGMA order form_2022_FR.xlsm]Order form'!$O$8"},"Label","Address","Anschrift","Adresse","Dirección"]
[{"$f":"CELL(\"address\",'Order form'!AA8)","v":"'[SIGMA order form_2022_FR.xlsm]Order form'!$AA$8"},"Label","Address","Anschrift","Adresse","Dirección"]
[{"$f":"CELL(\"address\",'Order form'!O9)","v":"'[SIGMA order form_2022_FR.xlsm]Order form'!$O$9"},"Label","Postcode","PLZ","Code postal","Código postal"]
[{"$f":"CELL(\"address\",'Order form'!AA9)","v":"'[SIGMA order form_2022_FR.xlsm]Order form'!$AA$9"},"Label","Postcode","PLZ","Code postal","Código postal"]
[{"$f":"CELL(\"address\",'Order form'!O10)","v":"'[SIGMA order form_2022_FR.xlsm]Order form'!$O$10"},"Label","City","Stadt","Ville","Ciudad"]
[{"$f":"CELL(\"address\",'Order form'!AA10)","v":"'[SIGMA order form_2022_FR.xlsm]Order form'!$AA$10"},"Label","City","Stadt","Ville","Ciudad"]
[{"$f":"CELL(\"address\",'Order form'!O11)","v":"'[SIGMA order form_2022_FR.xlsm]Order form'!$O$11"},"Label","Country","Land","Le pays","País"]
[{"$f":"CELL(\"address\",'Order form'!AA11)","v":"'[SIGMA order form_2022_FR.xlsm]Order form'!$AA$11"},"Label","Country","Land","Le pays","País"]
[{"$f":"CELL(\"address\",'Order form'!O12)","v":"'[SIGMA order form_2022_FR.xlsm]Order form'!$O$12"},"Label","Telephone","Telefon","Téléphone","Teléfono"]
[{"$f":"CELL(\"address\",'Order form'!AA12)","v":"'[SIGMA order form_2022_FR.xlsm]Order form'!$AA$12"},"Label","Telephone","Telefon","Téléphone","Teléfono"]
[{"$f":"CELL(\"address\",'Order form'!B16)","v":"'[SIGMA order form_2022_FR.xlsm]Order form'!$B$16"},"Label","Pick up address for lifts: Spedition Englmayer, Wiesenstrasse 71, 4600 Wels, Austria","ABHOLADRESSE: Spedition Englmayer, Wiesenstrasse 71, 4600 Wels, Austria","Adresse de l'entrepôt: Spedition Englmayer, Wiesenstrasse 71, 4600 Wels, Austria","Dirección de recogida de los equipos: Spedition Englmayer, Wiesenstrasse 71, 4600 Wels, Austria"]
[{"$f":"CELL(\"address\",'Order form'!B18)","v":"'[SIGMA order form_2022_FR.xlsm]Order form'!$B$18"},"Label","Production no.","Produktionsnr.","Num. de production","Producción no."]
[{"$f":"CELL(\"address\",'Order form'!H18)","v":"'[SIGMA order form_2022_FR.xlsm]Order form'!$H$18"},"Label","Order reference name (or number)","Auftragsreferenz (Name oder Nummer)","Nom de référence de la commande (ou numéro)","Nombre de referencia del pedido (o número)"]
[]
[null,null,null,null,null,null,"Left","Links","La gauche","Izquierda"]
[null,null,null,null,null,null,"Right","Rechts","Droite","Derecha"]
[]
[]
[{"$f":"CELL(\"address\",'Order form'!B21)","v":"'[SIGMA order form_2022_FR.xlsm]Order form'!$B$21"},"Label","Type of platform lift","Type of platform lift","Type de plate-forme élévatrice","Tipo de plataforma"]
[{"$f":"CELL(\"address\",'Order form'!B22)","v":"'[SIGMA order form_2022_FR.xlsm]Order form'!$B$22"},"Label","Lifting height exact (optional)","Hubhöhe exakt (optional)","Hauteur de levage exacte","Altura de elevacion exacta (opcional)"]
[{"$f":"CELL(\"address\",'Order form'!B23)","v":"'[SIGMA order form_2022_FR.xlsm]Order form'!$B$23"},"Label","Pit (if applicable) in mm","Montagegrube in mm (falls vorhanden)","Fosse (si existante) en mm","Foso (si existe) en mm"]
[{"$f":"CELL(\"address\",'Order form'!B24)","v":"'[SIGMA order form_2022_FR.xlsm]Order form'!$B$24"},"Label","Installation location","Installationsort","Lieu d'installation","Ubicación de la instalación"]
[{"$f":"CELL(\"address\",'Order form'!B25)","v":"'[SIGMA order form_2022_FR.xlsm]Order form'!$B$25"},"Label","Loading ramp","Auffahrrampe","Rampe d'accès","Rampa de acceso"]
[{"$f":"CELL(\"address\",'Order form'!B26)","v":"'[SIGMA order form_2022_FR.xlsm]Order form'!$B$26"},"Label","Side exit on upper landing","Seitliche Ausfahrt an oberer Haltestelle","Sortie latérale sur le palier supérieur","Salida lateral en el aterrizaje superior"]
[{"$f":"CELL(\"address\",'Order form'!B27)","v":"'[SIGMA order form_2022_FR.xlsm]Order form'!$B$27"},"Label","Side entry on lower landing ","Seitliche Auffahrt an unterer Haltestelle","Entrée latérale sur le palier inférieur ","Entrada lateral en el aterrizaje inferior "]
[{"$f":"CELL(\"address\",'Order form'!B28)","v":"'[SIGMA order form_2022_FR.xlsm]Order form'!$B$28"},"Label","Surface color","Farbe der Anlage","Couleur de la surface","El color de la superficie"]
[]
[]
[{"$f":"CELL(\"address\",'Order form'!AN27)","v":"'[SIGMA order form_2022_FR.xlsm]Order form'!$AN$27"},"Label","LEFT - Side entry on lower landing ","LINKS - Seitliche Auffahrt an unterer Haltestelle","À GAUCHE - Entrée latérale sur le palier inférieur ","IZQUIERDA - Entrada lateral en el aterrizaje inferior "]
[{"$f":"CELL(\"address\",'Order form'!AO27)","v":"'[SIGMA order form_2022_FR.xlsm]Order form'!$AO$27"},"Label","RIGHT - Side entry on lower landing ","RECHTS - Seitliche Auffahrt an unterer Haltestelle","À DROITE - Entrée latérale sur le palier inférieur ","DERECHA - Entrada lateral en el aterrizaje inferior "]
[]
[{"$f":"CELL(\"address\",'Order form'!Q21)","v":"'[SIGMA order form_2022_FR.xlsm]Order form'!$Q$21"},"Dropdown","Open platform","Offener Plattform","Plate-forme ouverte","Plataforma abierta"]
[{"$f":"CELL(\"address\",'Order form'!Q21)","v":"'[SIGMA order form_2022_FR.xlsm]Order form'!$Q$21"},"Dropdown","Open shaft platform","Plattform mit offenem Schacht","Plate-forme avec enceinte ouverte","Plataforma con cerramiento abierto"]
[{"$f":"CELL(\"address\",'Order form'!Q21)","v":"'[SIGMA order form_2022_FR.xlsm]Order form'!$Q$21"},"Dropdown","Fully enclosed shaft platform","Plattform mit geschlossenem Schacht (Dach)","Plate-forme avec enceinte fermée (toit)","Plataforma con cerramiento cerrado (techo)"]
[{"$f":"CELL(\"address\",'Order form'!Q23)","v":"'[SIGMA order form_2022_FR.xlsm]Order form'!$Q$23"},"Dropdown","No (standard)","Nein (Standard)","Non (Standard)","No (estándar)"]
[{"$f":"CELL(\"address\",'Order form'!Q23)","v":"'[SIGMA order form_2022_FR.xlsm]Order form'!$Q$23"},"Dropdown","Yes","Ja","Oui","Sí"]
[{"$f":"CELL(\"address\",'Order form'!Q24)","v":"'[SIGMA order form_2022_FR.xlsm]Order form'!$Q$24"},"Dropdown","Indoor","Innen","Intérieur","Interior"]
[{"$f":"CELL(\"address\",'Order form'!Q24)","v":"'[SIGMA order form_2022_FR.xlsm]Order form'!$Q$24"},"Dropdown","Outdoor","Im Außenbereich","Extérieur","Al aire libre"]
[{"$f":"CELL(\"address\",'Order form'!Q25)","v":"'[SIGMA order form_2022_FR.xlsm]Order form'!$Q$25"},"Dropdown","Automatic","Automatisch","Automatiquement","Automático"]
[{"$f":"CELL(\"address\",'Order form'!Q25)","v":"'[SIGMA order form_2022_FR.xlsm]Order form'!$Q$25"},"Dropdown","Manual","Manuell","Manuellement","Manual"]
[{"$f":"CELL(\"address\",'Order form'!Q26)","v":"'[SIGMA order form_2022_FR.xlsm]Order form'!$Q$26"},"Dropdown","No (standard)","Nein (Standard)","Non (standard)","No (estándar)"]
[{"$f":"CELL(\"address\",'Order form'!Q26)","v":"'[SIGMA order form_2022_FR.xlsm]Order form'!$Q$26"},"Dropdown","Yes - on left side","Ja - an der linken Seite","Oui - sur le côté gauche","Sí - en el lado izquierdo"]
[{"$f":"CELL(\"address\",'Order form'!Q26)","v":"'[SIGMA order form_2022_FR.xlsm]Order form'!$Q$26"},"Dropdown","Yes - on right side","Ja - an der rechten Seite","Oui - sur le côté droit","Sí - en el lado derecho"]
[{"$f":"CELL(\"address\",'Order form'!Q27)","v":"'[SIGMA order form_2022_FR.xlsm]Order form'!$Q$27"},"Dropdown","No (standard)","Nein (Standard)","Non (standard)","No (estándar)"]
[{"$f":"CELL(\"address\",'Order form'!Q27)","v":"'[SIGMA order form_2022_FR.xlsm]Order form'!$Q$27"},"Dropdown","Yes - on left side","Ja - an der linken Seite","Oui - sur le côté gauche","Sí - en el lado izquierdo"]
[{"$f":"CELL(\"address\",'Order form'!Q27)","v":"'[SIGMA order form_2022_FR.xlsm]Order form'!$Q$27"},"Dropdown","Yes - on right side","Ja - an der rechten Seite","Oui - sur le côté droit","Sí - en el lado derecho"]
[{"$f":"CELL(\"address\",'Order form'!Q28)","v":"'[SIGMA order form_2022_FR.xlsm]Order form'!$Q$28"},"Dropdown","RAL 9022 (Standard)","RAL 9022 (Standard)","RAL 9022 (Standard)","RAL 9022 (estándar)"]
[{"$f":"CELL(\"address\",'Order form'!Q28)","v":"'[SIGMA order form_2022_FR.xlsm]Order form'!$Q$28"},"Dropdown","Special RAL","Special RAL","Special RAL","Special RAL"]
[]
[{"$f":"CELL(\"address\",'Order form'!AM23)","v":"'[SIGMA order form_2022_FR.xlsm]Order form'!$AM$23"},"Formula","=IF(Q23=\"Yes\",\"The lifting height is reduced by the pit depth\", \"\")","=IF(Q23=\"Ja\",\"Die Hubhöhe reduziert sich um die Grubentiefe\", \"\")","=IF(Q23=\"Oui\",\"La hauteur de levage est réduite par la profondeur de la fosse\", \"\")","=IF(Q23=\"Sí\",\"La altura de elevación se reduce por la profundidad del foso\", \"\")"]
[{"$f":"CELL(\"address\",'Order form'!AM26)","v":"'[SIGMA order form_2022_FR.xlsm]Order form'!$AM$26"},"Formula","=IF(Q26<>\"No (standard)\",\"See the illustration on the right\", \"\")","=IF(Q26<>\"Nein (standard)\",\"Beachten Sie die Illustration rechts\", \"\")","=IF(Q26<>\"Non (standard)\",\"Voir l'illustration à droite\", \"\")","=IF(Q26<>\"No (estándar)\",\"Vea la ilustración de la derecha\", \"\")"]
[{"$f":"CELL(\"address\",'Order form'!AM27)","v":"'[SIGMA order form_2022_FR.xlsm]Order form'!$AM$27"},"Formula","=IF(Q27<>\"No (standard)\",\"See the illustration on the right\", \"\")","=IF(Q27<>\"Nein (standard)\",\"Beachten Sie die Illustration rechts\", \"\")","=IF(Q27<>\"Non (standard)\",\"Voir l'illustration à droite\", \"\")","=IF(Q27<>\"No (estándar)\",\"Vea la ilustración de la derecha\", \"\")"]
[{"$f":"CELL(\"address\",'Order form'!AM40)","v":"'[SIGMA order form_2022_FR.xlsm]Order form'!$AM$40"},"Formula","=IF(Q36=\"Yes\",\"Not possible for side entry on lower level\", \"\")","=IF(Q36=\"Ja\",\"Nicht möglich für seitliche Auffahrt an unterer Haltestellel\", \"\")","=IF(Q36=\"Qui\",\"Pas possible pour l'entrée latérale sur le palier inférieur\", \"\")","=IF(Q36=\"Sí\",\"No es posible para la entrada lateral en el nivel inferior\", \"\")"]
[{"$f":"CELL(\"address\",'Order form'!AM39)","v":"'[SIGMA order form_2022_FR.xlsm]Order form'!$AM$39"},"Formula","=IF(Q36=\"Yes\",\"Only available for open platform lift up to 1500 lifting height\", \"\")","=IF(Q36=\"Yes\",\"Only available for open platform lift up to 1500 lifting height\", \"\")","=IF(Q36=\"Qui\",\"Uniquement disponible pour plateforme élévatrice ouverte jusqu'à 1500 hauteur de levage\", \"\")","=IF(Q36=\"Sí\",\"Solo disponible para plataformas elevadoras abiertas de hasta 1500 de altura de elevación\", \"\")"]
[]
[{"$f":"CELL(\"address\",'Order form'!Q33)","v":"'[SIGMA order form_2022_FR.xlsm]Order form'!$Q$33"},null,"See the illustration on the right","Beachten Sie die Illustration rechts","Voir l'illustration à droite"]
[]
[{"$f":"CELL(\"address\",'Order form'!AN30)","v":"'[SIGMA order form_2022_FR.xlsm]Order form'!$AN$30"},"Label","Gate opening direction DIN","Richtung der Türöffnung DIN","Sens d'ouverture du porte DIN","Dirección de apertura de la puerta DIN"]
[{"$f":"CELL(\"address\",'Order form'!AN45)","v":"'[SIGMA order form_2022_FR.xlsm]Order form'!$AN$45"},"Label","DIN Right","DIN Rechts","DIN à droite","DIN Derecha"]
[{"$f":"CELL(\"address\",'Order form'!AN36)","v":"'[SIGMA order form_2022_FR.xlsm]Order form'!$AN$36"},"Label","DIN Left","DIN Links","DIN à gauche","DIN Izquierda"]
[{"$f":"CELL(\"address\",'Order form'!AN45)","v":"'[SIGMA order form_2022_FR.xlsm]Order form'!$AN$45"},"Label","DIN Right","DIN Rechts","DIN à droite","DIN Derecha"]
[{"$f":"CELL(\"address\",'Order form'!AN36)","v":"'[SIGMA order form_2022_FR.xlsm]Order form'!$AN$36"},"Label","DIN Left","DIN Links","DIN à gauche","DIN Izquierda"]
[{"$f":"CELL(\"address\",'Order form'!B30)","v":"'[SIGMA order form_2022_FR.xlsm]Order form'!$B$30"},"Label","Specifications","Spezifikation","Specifications","Specifications"]
[{"$f":"CELL(\"address\",'Order form'!B31)","v":"'[SIGMA order form_2022_FR.xlsm]Order form'!$B$31"},"Label","Pillar for control panel","Bediensäule","Poteau pour boîtier commande","Columna para el control de la plataforma"]
[{"$f":"CELL(\"address\",'Order form'!B32)","v":"'[SIGMA order form_2022_FR.xlsm]Order form'!$B$32"},"Label","Contact bar","Kontaktleisten","Butée de contact","Bar de contacto en los 4 lados"]
[{"$f":"CELL(\"address\",'Order form'!B35)","v":"'[SIGMA order form_2022_FR.xlsm]Order form'!$B$35"},"Label","Hard wired external control station","Verdrahtete Außensteuerungen","Boîtes palières câblé","Controles externos cableados"]
[{"$f":"CELL(\"address\",'Order form'!B36)","v":"'[SIGMA order form_2022_FR.xlsm]Order form'!$B$36"},"Label","Radio controlled external control station","Funk Außensteuerungen","Boîtes palières radio commande","Controles externos radio"]
[{"$f":"CELL(\"address\",'Order form'!B37)","v":"'[SIGMA order form_2022_FR.xlsm]Order form'!$B$37"},"Label","Pillar for external control fixation","Stahlstütze für Funk Außensteuerung","Pilier pour fixation des boîtes palières radio","Pilar para fijación de control externo"]
[{"$f":"CELL(\"address\",'Order form'!B38)","v":"'[SIGMA order form_2022_FR.xlsm]Order form'!$B$38"},"Label","Pilllar for external control with integr. buttons","Stahlstütze mit integrierten Drucktaster","Pilier pour fixation avec bouton-pression integrés","Pilar de control externo con botones integrados"]
[{"$f":"CELL(\"address\",'Order form'!B39)","v":"'[SIGMA order form_2022_FR.xlsm]Order form'!$B$39"},"Label","Safety curtain instead of safety bottom  ","Sicherheitsvorhang anstatt des Sicherheitsboden","Rideau de sécurité au lieu de fond de sécurité","Cortina de seguridad en lugar de fondo de seguridad"]
[{"$f":"CELL(\"address\",'Order form'!B40)","v":"'[SIGMA order form_2022_FR.xlsm]Order form'!$B$40"},"Label","750 mm access ramp","750mm Auffahrrampe","Rampe d'acces de 750mm","Rampa de acceso de 750mm"]
[]
[{"$f":"CELL(\"address\",'Order form'!B42)","v":"'[SIGMA order form_2022_FR.xlsm]Order form'!$B$42"},"Label","Special size access ramp","Speziallänge für Auffahrrampe","Longeur speciale pour la rampe d'acces","Longitud especial para la rampa de acceso"]
[null,null,{"$f":"IF(AND(Q84=0,Q83=\"yes\"),\"Set the special rail LENGTH in mm\",\"\")","v":""}]
[{"$f":"CELL(\"address\",'Order form'!B44)","v":"'[SIGMA order form_2022_FR.xlsm]Order form'!$B$44"},"Label","GSM Module for emergency call","GSM Modul für externe Notrufe","Communication module GSM (appel d'urgence)","Módulo GSM para llamada de emergencia"]
[{"$f":"CELL(\"address\",'Order form'!B45)","v":"'[SIGMA order form_2022_FR.xlsm]Order form'!$B$45"},"Label","Metal sheet covering backside of drive tower","Rückseitige Blechverkleidung","Tôle métallique couvre la derrière de la tour ","Cubierta para la parte trasera de la torre"]
[{"$f":"CELL(\"address\",'Order form'!B33)","v":"'[SIGMA order form_2022_FR.xlsm]Order form'!$B$33"},"Label","Gate opening on lower landing","Öffnungsrichtung der unteren Tür","Ouverture du portillon en bas","Apertura de la puerta en el rellano inferior"]
[{"$f":"CELL(\"address\",'Order form'!B34)","v":"'[SIGMA order form_2022_FR.xlsm]Order form'!$B$34"},"Label","Gate opening on upper landing","Öffnungsrichtung der oberen Tür","Ouverture du portillon en haut","Apertura de la puerta en el rellano superior"]
[{"$f":"CELL(\"address\",'Order form'!B48)","v":"'[SIGMA order form_2022_FR.xlsm]Order form'!$B$48"},"Label","Automatic gate openers","Automatische Türöffner","Portes automatiques  ","Abridores automáticos de puertas"]
[]
[{"$f":"CELL(\"address\",'Order form'!Q31)","v":"'[SIGMA order form_2022_FR.xlsm]Order form'!$Q$31"},"Dropdown","No","Nein","Non","No"]
[{"$f":"CELL(\"address\",'Order form'!Q31)","v":"'[SIGMA order form_2022_FR.xlsm]Order form'!$Q$31"},"Dropdown","Yes","Ja","Oui","Sí"]
[{"$f":"CELL(\"address\",'Order form'!Q32)","v":"'[SIGMA order form_2022_FR.xlsm]Order form'!$Q$32"},"Dropdown","No","Nein","Non","No"]
[{"$f":"CELL(\"address\",'Order form'!Q32)","v":"'[SIGMA order form_2022_FR.xlsm]Order form'!$Q$32"},"Dropdown","Yes","Ja","Oui","Sí"]
[]
[]
[]
[]
[{"$f":"CELL(\"address\",'Order form'!Q35)","v":"'[SIGMA order form_2022_FR.xlsm]Order form'!$Q$35"},"Dropdown","No","Nein","Non","No"]
[{"$f":"CELL(\"address\",'Order form'!Q35)","v":"'[SIGMA order form_2022_FR.xlsm]Order form'!$Q$35"},"Dropdown","1","1","1","1"]
[{"$f":"CELL(\"address\",'Order form'!Q35)","v":"'[SIGMA order form_2022_FR.xlsm]Order form'!$Q$35"},"Dropdown","2","2","2","2"]
[{"$f":"CELL(\"address\",'Order form'!Q36)","v":"'[SIGMA order form_2022_FR.xlsm]Order form'!$Q$36"},"Dropdown","No","Nein","Non","No"]
[{"$f":"CELL(\"address\",'Order form'!Q36)","v":"'[SIGMA order form_2022_FR.xlsm]Order form'!$Q$36"},"Dropdown","1","1","1","1"]
[{"$f":"CELL(\"address\",'Order form'!Q36)","v":"'[SIGMA order form_2022_FR.xlsm]Order form'!$Q$36"},"Dropdown","2","2","2","2"]
[{"$f":"CELL(\"address\",'Order form'!Q37)","v":"'[SIGMA order form_2022_FR.xlsm]Order form'!$Q$37"},"Dropdown","No","Nein","Non","No"]
[{"$f":"CELL(\"address\",'Order form'!Q37)","v":"'[SIGMA order form_2022_FR.xlsm]Order form'!$Q$37"},"Dropdown","1","1","1","1"]
[{"$f":"CELL(\"address\",'Order form'!Q37)","v":"'[SIGMA order form_2022_FR.xlsm]Order form'!$Q$37"},"Dropdown","2","2","2","2"]
[{"$f":"CELL(\"address\",'Order form'!Q38)","v":"'[SIGMA order form_2022_FR.xlsm]Order form'!$Q$38"},"Dropdown","No","Nein","Non","No"]
[{"$f":"CELL(\"address\",'Order form'!Q38)","v":"'[SIGMA order form_2022_FR.xlsm]Order form'!$Q$38"},"Dropdown","1","1","1","1"]
[{"$f":"CELL(\"address\",'Order form'!Q38)","v":"'[SIGMA order form_2022_FR.xlsm]Order form'!$Q$38"},"Dropdown","2","2","2","2"]
[{"$f":"CELL(\"address\",'Order form'!Q39)","v":"'[SIGMA order form_2022_FR.xlsm]Order form'!$Q$39"},"Dropdown","No","Nein","Non","No"]
[{"$f":"CELL(\"address\",'Order form'!Q39)","v":"'[SIGMA order form_2022_FR.xlsm]Order form'!$Q$39"},"Dropdown","Yes","Ja","Oui","Sí"]
[{"$f":"CELL(\"address\",'Order form'!Q40)","v":"'[SIGMA order form_2022_FR.xlsm]Order form'!$Q$40"},"Dropdown","No","Nein","Non","No"]
[{"$f":"CELL(\"address\",'Order form'!Q40)","v":"'[SIGMA order form_2022_FR.xlsm]Order form'!$Q$40"},"Dropdown","Yes","Ja","Oui","Sí"]
[{"$f":"CELL(\"address\",'Order form'!Q41)","v":"'[SIGMA order form_2022_FR.xlsm]Order form'!$Q$41"},"Dropdown","No","Nein","Non","No"]
[{"$f":"CELL(\"address\",'Order form'!Q41)","v":"'[SIGMA order form_2022_FR.xlsm]Order form'!$Q$41"},"Dropdown","Yes","Ja","Oui","Sí"]
[{"$f":"CELL(\"address\",'Order form'!Q42)","v":"'[SIGMA order form_2022_FR.xlsm]Order form'!$Q$42"},"Dropdown","No","Nein","Non","No"]
[{"$f":"CELL(\"address\",'Order form'!Q42)","v":"'[SIGMA order form_2022_FR.xlsm]Order form'!$Q$42"},"Dropdown","Yes","Ja","Oui","Sí"]
[{"$f":"CELL(\"address\",'Order form'!Q43)","v":"'[SIGMA order form_2022_FR.xlsm]Order form'!$Q$43"},"Dropdown","No","Nein","Non","No"]
[{"$f":"CELL(\"address\",'Order form'!Q43)","v":"'[SIGMA order form_2022_FR.xlsm]Order form'!$Q$43"},"Dropdown","Yes","Ja","Oui","Sí"]
[{"$f":"CELL(\"address\",'Order form'!Q44)","v":"'[SIGMA order form_2022_FR.xlsm]Order form'!$Q$44"},"Dropdown","No","Nein","Non","No"]
[{"$f":"CELL(\"address\",'Order form'!Q44)","v":"'[SIGMA order form_2022_FR.xlsm]Order form'!$Q$44"},"Dropdown","Yes","Ja","Oui","Sí"]
[{"$f":"CELL(\"address\",'Order form'!Q45)","v":"'[SIGMA order form_2022_FR.xlsm]Order form'!$Q$45"},"Dropdown","No","Nein","Non","No"]
[{"$f":"CELL(\"address\",'Order form'!Q45)","v":"'[SIGMA order form_2022_FR.xlsm]Order form'!$Q$45"},"Dropdown","Yes","Ja","Oui","Sí"]
[{"$f":"CELL(\"address\",'Order form'!Q33)","v":"'[SIGMA order form_2022_FR.xlsm]Order form'!$Q$33"},"Dropdown","DIN Right","DIN Rechts","DIN à droite","DIN Derecha"]
[{"$f":"CELL(\"address\",'Order form'!Q33)","v":"'[SIGMA order form_2022_FR.xlsm]Order form'!$Q$33"},"Dropdown","DIN Left","DIN Links","DIN à gauche","DIN Izquierda"]
[{"$f":"CELL(\"address\",'Order form'!Q34)","v":"'[SIGMA order form_2022_FR.xlsm]Order form'!$Q$34"},"Dropdown","DIN Right","DIN Rechts","DIN à droite","DIN Derecha"]
[{"$f":"CELL(\"address\",'Order form'!Q34)","v":"'[SIGMA order form_2022_FR.xlsm]Order form'!$Q$34"},"Dropdown","DIN Left","DIN Links","DIN à gauche","DIN Izquierda"]
[{"$f":"CELL(\"address\",'Order form'!Q48)","v":"'[SIGMA order form_2022_FR.xlsm]Order form'!$Q$48"},"Dropdown","No","Nein","Non","No"]
[{"$f":"CELL(\"address\",'Order form'!Q48)","v":"'[SIGMA order form_2022_FR.xlsm]Order form'!$Q$48"},"Dropdown","Yes","Ja","Oui","Sí"]
[]
[{"$f":"CELL(\"address\",'Order form'!B50)","v":"'[SIGMA order form_2022_FR.xlsm]Order form'!$B$50"},"Label","Further specifications","Weitere Optionen","Autres options","Especificaciones adicionales"]
[{"$f":"CELL(\"address\",'Order form'!B51)","v":"'[SIGMA order form_2022_FR.xlsm]Order form'!$B$51"},"Label","Transport box","Transportkiste","Boîte de transport","Caja de transporte"]
[{"$f":"CELL(\"address\",'Order form'!B52)","v":"'[SIGMA order form_2022_FR.xlsm]Order form'!$B$52"},"Label","Change in the order after approval","Änderung nach Produktionsstart","Change après la confirmation","Change in the order after approval"]
[{"$f":"CELL(\"address\",'Order form'!B53)","v":"'[SIGMA order form_2022_FR.xlsm]Order form'!$B$53"},"Label","Warranty in months","Garantie","Garantie","Garantia"]
[]
[{"$f":"CELL(\"address\",'Order form'!B55)","v":"'[SIGMA order form_2022_FR.xlsm]Order form'!$B$55"},"Label","Montáž ALTECH"]
[{"$f":"CELL(\"address\",'Order form'!B56)","v":"'[SIGMA order form_2022_FR.xlsm]Order form'!$B$56"},"Label","Vzdálenost do místa instalace v km"]
[{"$f":"CELL(\"address\",'Order form'!B57)","v":"'[SIGMA order form_2022_FR.xlsm]Order form'!$B$57"},"Label","Zapuštění plošiny do jámy"]
[{"$f":"CELL(\"address\",'Order form'!B58)","v":"'[SIGMA order form_2022_FR.xlsm]Order form'!$B$58"},"Label","Stavební úpravy ALTECH"]
[{"$f":"CELL(\"address\",'Order form'!B59)","v":"'[SIGMA order form_2022_FR.xlsm]Order form'!$B$59"},"Label","El. přípojka ALTECH"]
[{"$f":"CELL(\"address\",'Order form'!B60)","v":"'[SIGMA order form_2022_FR.xlsm]Order form'!$B$60"},"Label","Electric supply position","Position eleketrisches Kabel","Situation de l'approvisionnement en électricité","Posición de suministro eléctrico"]
[]
[{"$f":"CELL(\"address\",'Order form'!Q51)","v":"'[SIGMA order form_2022_FR.xlsm]Order form'!$Q$51"},"Dropdown","Q1 - wooden box (standard)","Q1 - Holzkiste (Standard)","Q1 - Caisse en bois","Q1 - Caja de madera"]
[{"$f":"CELL(\"address\",'Order form'!Q51)","v":"'[SIGMA order form_2022_FR.xlsm]Order form'!$Q$51"},"Dropdown","Q3 - wooden box for sea transport","Q3 - Holzkiste für Seetransport","Q3 - Caisse en bois pour le transport maritime","Q3 - Caja de madera para el transporte marítimo"]
[{"$f":"CELL(\"address\",'Order form'!Q51)","v":"'[SIGMA order form_2022_FR.xlsm]Order form'!$Q$51"},"Dropdown","Q3 - wooden box for air transport","Q3 - Holzkiste für Lufttransport","Q3 - Caisse en bois pour le transport aérien","Q3 - Caja de madera para transporte aéreo"]
[{"$f":"CELL(\"address\",'Order form'!Q52)","v":"'[SIGMA order form_2022_FR.xlsm]Order form'!$Q$52"},"Dropdown","No","Nein","Non","No"]
[{"$f":"CELL(\"address\",'Order form'!Q52)","v":"'[SIGMA order form_2022_FR.xlsm]Order form'!$Q$52"},"Dropdown","Yes","Ja","Oui","Sí"]
[{"$f":"CELL(\"address\",'Order form'!Q53)","v":"'[SIGMA order form_2022_FR.xlsm]Order form'!$Q$53"},"Dropdown","12","12","12","12"]
[{"$f":"CELL(\"address\",'Order form'!Q53)","v":"'[SIGMA order form_2022_FR.xlsm]Order form'!$Q$53"},"Dropdown","24","24","24","24"]
[{"$f":"CELL(\"address\",'Order form'!Q53)","v":"'[SIGMA order form_2022_FR.xlsm]Order form'!$Q$53"},"Dropdown","36","36","36","36"]
[{"$f":"CELL(\"address\",'Order form'!Q53)","v":"'[SIGMA order form_2022_FR.xlsm]Order form'!$Q$53"},"Dropdown","48","48","48","48"]
[{"$f":"CELL(\"address\",'Order form'!Q53)","v":"'[SIGMA order form_2022_FR.xlsm]Order form'!$Q$53"},"Dropdown","60","60","60","60"]
[{"$f":"CELL(\"address\",'Order form'!Q53)","v":"'[SIGMA order form_2022_FR.xlsm]Order form'!$Q$53"},"Dropdown","other","other","other","other"]
[{"$f":"CELL(\"address\",'Order form'!Q55)","v":"'[SIGMA order form_2022_FR.xlsm]Order form'!$Q$55"},"Dropdown","No","Nein","Non","No"]
[{"$f":"CELL(\"address\",'Order form'!Q55)","v":"'[SIGMA order form_2022_FR.xlsm]Order form'!$Q$55"},"Dropdown","Yes","Ja","Oui","Sí"]
[{"$f":"CELL(\"address\",'Order form'!Q57)","v":"'[SIGMA order form_2022_FR.xlsm]Order form'!$Q$57"},"Dropdown","No","Nein","Non","No"]
[{"$f":"CELL(\"address\",'Order form'!Q57)","v":"'[SIGMA order form_2022_FR.xlsm]Order form'!$Q$57"},"Dropdown","Yes","Ja","Oui","Sí"]
[{"$f":"CELL(\"address\",'Order form'!Q58)","v":"'[SIGMA order form_2022_FR.xlsm]Order form'!$Q$58"},"Dropdown","No","Nein","Non","No"]
[{"$f":"CELL(\"address\",'Order form'!Q58)","v":"'[SIGMA order form_2022_FR.xlsm]Order form'!$Q$58"},"Dropdown","Yes","Ja","Oui","Sí"]
[{"$f":"CELL(\"address\",'Order form'!Q59)","v":"'[SIGMA order form_2022_FR.xlsm]Order form'!$Q$59"},"Dropdown","No","Nein","Non","No"]
[{"$f":"CELL(\"address\",'Order form'!Q59)","v":"'[SIGMA order form_2022_FR.xlsm]Order form'!$Q$59"},"Dropdown","Yes","Ja","Oui","Sí"]
[{"$f":"CELL(\"address\",'Order form'!Q60)","v":"'[SIGMA order form_2022_FR.xlsm]Order form'!$Q$60"},"Dropdown","Back - right side","Hinten rechts","Retour - côté droit","Atrás - lado derecho"]
[{"$f":"CELL(\"address\",'Order form'!Q60)","v":"'[SIGMA order form_2022_FR.xlsm]Order form'!$Q$60"},"Dropdown","Back - left side","Hinten links","Retour - côté gauche","Atrás - lado izquierdo"]
[{"$f":"CELL(\"address\",'Order form'!Q60)","v":"'[SIGMA order form_2022_FR.xlsm]Order form'!$Q$60"},"Dropdown","Front - right side","Vorne rechts","Avant - côté droit","Frente - lado derecho"]
[{"$f":"CELL(\"address\",'Order form'!Q60)","v":"'[SIGMA order form_2022_FR.xlsm]Order form'!$Q$60"},"Dropdown","Front - left side","Vorne links","Avant - côté gauche","Frente - lado izquierdo"]
[]
[{"$f":"CELL(\"address\",'Order form'!B64)","v":"'[SIGMA order form_2022_FR.xlsm]Order form'!$B$64"},"Label","Additional information","Zusätzliche Information","Information additionnelle","Información Adicional"]
[{"$f":"CELL(\"address\",'Order form'!B73)","v":"'[SIGMA order form_2022_FR.xlsm]Order form'!$B$73"},"Label","Delivery date","Lieferdatum","Date de livraison","Fecha de entrega"]
[{"$f":"CELL(\"address\",'Order form'!V73)","v":"'[SIGMA order form_2022_FR.xlsm]Order form'!$V$73"},"Label","Prepared by","Bearbeitet von","Preparé par","Preparado por"]
[{"$f":"CELL(\"address\",'Order form'!H73)","v":"'[SIGMA order form_2022_FR.xlsm]Order form'!$H$73"},"Label","Week","Woche","Semaine","Semana"]

{"sheet":"LangBackup","index":3,"n_rows":164,"n_cols":5,"rows_kept":164,"cut":false,"hidden":true,"merged":[]}
["Cell","Type","English","Deutsch","French"]
["Q3","Label","ALPHA stairlift","Alpha Treppenlift"]
["Q4","Label","Order form","Bestellformular","Bon de commande"]
["D3","Label","Dimension No.","Abmessung Nr.","Numéro de dimension"]
["D5","Label","Language","Sprache","La langue"]
["AD3","Label","Date:","Datum:","l' date"]
["AD4","Label","Version:","Version:","Version"]
["P6","Label","Distributor: (always fill out)","Händler: (immer ausfüllen)","Distributeur: (remplissez toujours)"]
["AB6","Label","Delivery address: (always fill out)","Lieferadresse: (immer ausfüllen)","Adresse de livraison: (remplissez toujours)"]
["P7","Label","Company:","Firma:","Enterprise"]
["B7","Label","Company:","Firma:","Enterprise"]
["P9","Label","Address","Anschrift","Une robe"]
["AB9","Label","Address","Anschrift","Une robe"]
["P10","Label","Postcode","Postleitzahl","Code postal"]
["AB10","Label","Postcode","Postleitzahl","Code postal"]
["P11","Label","City","Stadt","Ville"]
["AB11","Label","City","Stadt","Ville"]
["P12","Label","Country","Land","le pays"]
["AB12","Label","Country","Land","le pays"]
["D23","Label","Installation location","Installationsort"]
["D24","Label","Installation side","Montageseite","Côté d'installation"]
["C17","Label","Pick up address for lifts: Spedition Englmayer, Wiesenstrasse 71, 4600 Wels, Austria","ABHOLADRESSE: Spedition Englmayer, Wiesenstrasse 71, 4600 Wels, Austria"]
["C19","Label","Production No.","Produktionsnummer"]
["I19","Label","Order reference name (or number)","Auftragsreferenz (Name oder Nummer)"]
["C22","Label","Rail specification","Schienenspezifikation"]
["D25","Label","Rail length in meters rounded","Schienenlänge (ungefähr in m)","Longueur du rail en mètres arrondis"]
["D26","Label","Lower stop","Untere Haltestelle","Arrêt inférieur"]
["D27","Label","Upper stop","Obere Haltestelle","Arrêt supérieur"]
["D28","Label","Number of 90° curves","Anzahl der 90° Kurven","Nombre de courbes à 90°"]
["D28","Label","Number of 180° curves","Anzahl der 180° Kurven","Nombre de courbes à 180°"]
["D30","Label","Number of special curves","Anzahl der Spezialkurven","Nombre de courbes spéciales"]
["D31","Label","Number of negative curves","Anzahl der Negativkurven"]
["D32","Label","Number of vertical bends","Number of vertical bends"]
["D33","Label","Number of intermediate stops","Anzahl der Zwischenhaltestellen"]
["D34","Label","Rail surface treatment","Schienenfarbe"]
["AD26","Formula","=IF(R26=\"straight start with bottom overrun\",\"mm from first step to end of chair\", \"\")","=IF(R26=\"Gerade mit horizontalem Auslauf\",\"mm von erster Stufe bis Ende Sitz\", \"\")"]
["AD27","Formula","=IF(R27=\"straight top overrun\",\"mm from last step to end of chair\", \"\")","=IF(R27=\"Gerader Überlauf\",\"mm von letzter Stufe bis Ende Sitz\", \"\")"]
["R23","Dropdown","Indoor","Innen"]
["R23","Dropdown","Outdoor","Im Außenbereich"]
["R24","Dropdown","Left","Links","La gauche"]
["R24","Dropdown","Right","Rechts","Droite"]
["R26","Dropdown","Straight","Gerade","Tout droit"]
["R26","Dropdown","Straight with steep start","Gerade mit Steilstart","Droit avec début raide"]
["R26","Dropdown","Straight start with bottom overrun","Gerade mit horizontalem Auslauf","Début droit avec dépassement du bas"]
["R26","Dropdown","90°","90°","90°"]
["R26","Dropdown","180°","180°","180°"]
["R26","Dropdown","Special curve","Spezialkurve","Courbe spéciale"]
["R27","Dropdown","Straight at last step","Gerade an letzter Stufe","Droit à la dernière étape"]
["R27","Dropdown","Straight top overrun","Gerader Überlauf","Débordement droit"]
["R27","Dropdown","90° on top landing","90° auf oberem Podest","Atterrissage supérieur à 90°"]
["R27","Dropdown","180° on top landing","180° auf oberem Podest","Atterrissage supérieur à 180°"]
["R27","Dropdown","Special curve on top landing","Spezialkurve auf oberem Podest","Courbe spéciale sur le palier supérieur"]
["R34","Dropdown","RAL 7035 (standard)","RAL 7035 (Standard)"]
["R34","Dropdown","special RAL","Spezial RAL"]
["R34","Dropdown","zinc + RAL 7035","Verzinkt + RAL 7035"]
["R34","Dropdown","zinc + special RAL","Verzinkt + spezial RAL"]
["C36","Label","Design specifications","Sitz Design Optionen","Les spécifications de conception"]
["D37","Label","Execution","Ausführung","Exécution"]
["D38","Label","Seat design type","Sitz Design Typ","Type de conception du siège"]
["D39","Label","Upholstery","Sitzfarbe","Tapisserie"]
["D40","Label","Automatic footrest folding","Automatisches Fußbrett","Repose-pied automatique"]
["D41","Label","Automatic seat swivel","Automatischer Drehsitz","Siège pivotant automatique"]
["D42","Label","Bigger armrest distance (+100mm)","Größere Distanz zwischen Armlehnen ","Plus grande distance d'accoudoir (+ 100mm)"]
["D43","Label","Joystick position side","Joystickposition","Position du joystick"]
["D44","Label","External landing controls (always radio)","Externe Landekontrollen (immer Radio)","Contrôles d'atterrissage externes (toujours radio)"]
["D45","Label","Type of key","Art des Schlüssels","Type de clé"]
["D46","Label","Total no. of external landing controls","Anzahl Fernbedienungen gesamt","Nombre total de contrôles d'atterrissage externes"]
["D47","Label","Postion of external controls","Stellung externer Kontrollen","Position des contrôles externes"]
["R37","Dropdown","Stairlift + rail (standard)","Kompletter Lift "]
["R37","Dropdown","Rail only","Nur Schiene"]
["AS39","Label","Blue","Blau","Bleu"]
["AS40","Label","Red","rot","rouge"]
["AS41","Label","Brown","Braun","marron"]
["AS42","Label","Green","Grün","vert"]
["AS43","Label","Beige","Beige","Beige"]
["AS44","Label","Light gray","Hellgrau","Gris clair"]
["AT39","Label","Marine blue","Marineblau","Bleu marine"]
["AT40","Label","Emerald green","Smaragdgrün","vert émeraude"]
["AT41","Label","Ruby red","Rubinrot","rouge rubis"]
["AT42","Label","Pearl white","Perlweiss","Perle blanche"]
["AT43","Label","Walnut brown","Walnussbraun","Marron"]
["AT44","Label","Safran yellow","Safran-Gelb","Jaune safran"]
["AU39","Label","Marine blue","Marineblau","Bleu marine"]
["AU40","Label","Emerald green","Smaragdgrün","vert émeraude"]
["AU41","Label","Ruby red","Rubinrot","rouge rubis"]
["AU42","Label","Pearl white","Perlweiss","Perle blanche"]
["AU43","Label","Walnut brown","Walnussbraun","Marron"]
["AU44","Label","Safran yellow","Safran-Gelb","Jaune safran"]
["AV39","Label","Olive (woven textile)","Olive (gewebtes Textil)","Olive (textile tissé)"]
["AV40","Label","Granite (woven textile)","Granit (gewebtes Textil)","Granite (textile tissé)"]
["AV41","Label","Bordeaux (woven textile)","Bordeaux (gewebtes Textil)","Bordeaux (textile tissé)"]
["AV42","Label","Marble (woven textile)","Marmor (gewebtes Textil)","Marbre (textile tissé)"]
["AV43","Label","Ivory (woven textile)","Elfenbein (gewebtes Textil)","Ivoire (textile tissé)"]
["AV44","Label","Basalt (artificial leather)","Basalt (Kunstleder)","Basalte (cuir artificiel)"]
["AV45","Label","Burgundy (artificial leather)","Burgund (Kunstleder)","Bourgogne (cuir artificiel)"]
["AV46","Label","Mocha (artificial leather)","Mokka (Kunstleder)","Moka (cuir artificiel)"]
["R39","Switch","Blue","Blau","Bleu"]
["R39","Switch","Red","rot","rouge"]
["R39","Switch","Brown","Braun","marron"]
["R39","Switch","Green","Grün","vert"]
["R39","Switch","Beige","Beige","Beige"]
["R39","Switch","Light gray","Hellgrau","Gris clair"]
["R39","Switch","Marine blue","Marineblau","Bleu marine"]
["R39","Switch","Emerald green","Smaragdgrün","vert émeraude"]
["R39","Switch","Ruby red","Rubinrot","rouge rubis"]
["R39","Switch","Pearl white","Perlweiss","Perle blanche"]
["R39","Switch","Walnut brown","Walnussbraun","Marron"]
["R39","Switch","Safran yellow","Safran-Gelb","Jaune safran"]
["R39","Switch","Olive (woven textile)","Olive (gewebtes Textil)","Olive (textile tissé)"]
["R39","Switch","Granite (woven textile)","Granit (gewebtes Textil)","Granite (textile tissé)"]
["R39","Switch","Bordeaux (woven textile)","Bordeaux (gewebtes Textil)","Bordeaux (textile tissé)"]
["R39","Switch","Marble (woven textile)","Marmor (gewebtes Textil)","Marbre (textile tissé)"]
["R39","Switch","Ivory (woven textile)","Elfenbein (gewebtes Textil)","Ivoire (textile tissé)"]
["R39","Switch","Basalt (artificial leather)","Basalt (Kunstleder)","Basalte (cuir artificiel)"]
["R39","Switch","Burgundy (artificial leather)","Burgund (Kunstleder)","Bourgogne (cuir artificiel)"]
["R39","Switch","Mocha (artificial leather)","Mokka (Kunstleder)","Moka (cuir artificiel)"]
["R40","Dropdown","Yes","Ja","Oui"]
["R40","Dropdown","No","Nein","Non"]
["R41","Dropdown","Yes","Ja","Oui"]
["R41","Dropdown","No","Nein","Non"]
["R42","Dropdown","Yes","Ja","Oui"]
["R42","Dropdown","No","Nein","Non"]
["R43","Dropdown","On downstairs side (standard)","Talseitig","Côté bas (standard)"]
["R43","Dropdown","On upstairs side (optional)","Bergseitig","Du côté de l'étage (facultatif)"]
["R44","Dropdown","Membrane keypad (standard)","Folientastatur (Standard)","Clavier à membrane (standard)"]
["R44","Dropdown","Big push buttons","Großer Taster","Gros boutons poussoirs"]
["R45","Dropdown","Without key","Ohne Schlüssel","Sans clé"]
["R45","Dropdown","Mini key","Minischlüssel","Mini clé"]
["R47","Dropdown","Handset","Handkassette","Combiné"]
["R47","Dropdown","Wall-mounted","Wantmontiert","Mural"]
["R47","Dropdown","Pillar-mounted","Stützenmontiert","Monté sur pilier"]
["C49","Label","Further options","Zusätzliche Optionen"]
["D50","Label","Plastic cover for outdoor stairlift","Plastic cover for outdoor stairlift"]
["D54","Label","Warranty time","Warranty time"]
["D55","Label","Stainless steel label","Stainless steel label"]
["D56","Label","Transport box","Transportbox"]
["D59","Label","Drawing time urgency in working days","Drawing time urgency in days"]
["D60","Label","Service display","Service display"]
["D61","Label","Plastic cover for footplates","Kunststoffabdeckung für Stützenfüße"]
["D62","Label","Stand-up seat version (up to 120 kg)","Variante Stehsitz (bis zu 120 kg)"]
["D63","Label","Higher loading capacity of 145kg","Höhere Traglast bis 145 kg"]
["D64","Label","Optional user dimensions","Benutzergröße (optional)"]
["D65","Label","Extra heavy batteries","Extra starke Batterien"]
["R64","Label","Height from seat to head:","Maß Sitz bis Kopf"]
["AC64","Label","Distance from back to knees:","Maß Rücken bis Knie"]
["R50","Dropdown","Yes","Ja","Oui"]
[{"$f":"A146","v":"R50"},"Dropdown","No","Nein","Non"]
["R60","Dropdown","Yes","Ja","Oui"]
[{"$f":"A148","v":"R60"},"Dropdown","No","Nein","Non"]
["R61","Dropdown","Yes","Ja","Oui"]
[{"$f":"A150","v":"R61"},"Dropdown","No","Nein","Non"]
["R62","Dropdown","Yes","Ja","Oui"]
[{"$f":"A152","v":"R62"},"Dropdown","No","Nein","Non"]
["R63","Dropdown","Yes","Ja","Oui"]
[{"$f":"A154","v":"R63"},"Dropdown","No","Nein","Non"]
["C67","Label","Supporting structure","Art der Befestigung"]
["D68","Label","Fixing of the rails","Fixierung der Schiene"]
["R68","Dropdown","into the steps (standard)","Auf Stützen in die Treppe"]
["R68","Dropdown","clamp fixing on the steps","Mit Klemmen an die Treppe"]
["R68","Dropdown","on the wall with supporting pillars","An die Wand"]
["C72","Label","Additional information","Zusätzliche Information"]
["C81","Label","Delivery date","Lieferdatim:"]
["W81","Label","Prepared by","Bearbeitet von:"]
["K81","Label","Week","Woche","la semaine"]

{"sheet":"Setup","index":4,"n_rows":1,"n_cols":2,"rows_kept":1,"cut":false,"hidden":true,"merged":[]}
["Language","Español"]